fUSD/lending_fUSD_20240220
["ID","MTS","AMOUNT","RATE_DAILY","PERIOD"]
[314610362,1708450336212,-6450.26121638,0.0005,2]
[314610363,1708450336224,-1000.0,0.0005,34]
[314610364,1708450336236,-196.35429008,0.00050023,60]
[314610365,1708450336248,-154.33839749,0.00050025,60]
[314610366,1708450336259,-164.99375122,0.00050026,60]
[314610367,1708450336276,-766.4703669,0.0005003,14]
[314610368,1708450336287,-857.0,0.00050037,120]
[314610369,1708450336298,-198.0,0.00050037,120]
[314610370,1708450336311,-428.0,0.00050037,120]
[314610371,1708450336322,-2888.0,0.00050037,120]
[314610372,1708450336334,-150.0,0.00050037,120]
[314610373,1708450336345,-317.964,0.00050037,120]
[314610374,1708450336357,-321.0,0.00050037,120]
[314610375,1708450336368,-454.0,0.00050037,120]
[314610376,1708450336379,-1212.321,0.00050037,120]
[314610377,1708450336393,-389.0,0.00050037,120]
[314610378,1708450336405,-8174.0,0.00050037,120]
[314610379,1708450336417,-1526.974,0.00050037,120]
[314610380,1708450336429,-1371.0,0.00050037,120]
[314610381,1708450336440,-2848.157,0.00050037,120]
[314610382,1708450336452,-19872.0,0.00050037,120]
[314610383,1708450336463,-3030.971,0.00050037,120]
[314610384,1708450336474,-2292.0,0.00050037,120]
[314610385,1708450336485,-2692.0,0.00050037,120]
[314610386,1708450336496,-4103.0,0.00050037,120]
[314610387,1708450336507,-2931.0,0.00050037,120]
[314610388,1708450336520,-172.84564799,0.00050058,60]
[314610389,1708450336531,-170.0,0.00050066,120]
[314610390,1708450336543,-155.18298927,0.00050066,60]
[314610391,1708450336556,-150.0,0.00050072,30]
[314610392,1708450336567,-156.47464635,0.00050091,60]
[314610393,1708450336579,-350.0,0.000501,27]
[314610394,1708450336590,-157.20941371,0.00050114,53]
[314610395,1708450336602,-2000.0,0.00050122,120]
[314610396,1708450336613,-422.84767594,0.00050122,120]
[314610397,1708450336625,-196.35429008,0.00050131,60]
[314610398,1708450336639,-600.0,0.00050136,30]
[314610399,1708450336651,-786.47,0.00050136,31]
[314610400,1708450336662,-500.0,0.00050136,30]
[314610401,1708450336674,-500.0,0.00050136,2]
[314610402,1708450336687,-1441.53,0.00050136,30]
[314610403,1708450336698,-500.0,0.00050136,30]
[314610404,1708450336710,-500.0,0.00050136,30]
[314610405,1708450336722,-1270.73,0.00050136,30]
[314610406,1708450336734,-264.26019536,0.00050136,30]
[314610407,1708450336746,-734.91,0.00050136,30]
[314610408,1708450336759,-500.0,0.00050136,30]
[314610409,1708450336772,-500.0,0.00050136,30]
[314610410,1708450336785,-2166.93,0.00050136,30]
[314610411,1708450336796,-225.66,0.00050136,30]
[314610412,1708450336810,-500.0,0.00050136,30]
[314610413,1708450336822,-2578.86,0.00050136,30]
[314610414,1708450336834,-542.64,0.00050136,30]
[314610415,1708450336846,-5958.34,0.00050136,30]
[314610416,1708450336857,-527.88,0.00050136,30]
[314610417,1708450336869,-9351.93,0.00050136,30]
[314610418,1708450336881,-500.0,0.00050136,30]
[314610419,1708450336896,-500.0,0.00050136,30]
[314610420,1708450336908,-1749.56,0.00050136,30]
[314610421,1708450336919,-156.17295822,0.00050136,30]
[314610422,1708450336931,-1234.3,0.00050136,30]
[314610423,1708450336943,-500.0,0.00050136,30]
[314610424,1708450336955,-500.0,0.00050136,30]
[314610425,1708450336967,-514.34,0.00050136,30]
[314610426,1708450336979,-795.95,0.00050136,30]
[314610427,1708450336991,-500.0,0.00050136,30]
[314610428,1708450337002,-500.0,0.00050136,30]
[314610429,1708450337014,-500.0,0.00050136,30]
[314610430,1708450337026,-500.0,0.00050136,30]
[314610431,1708450337037,-320.37,0.00050136,30]
[314610432,1708450337048,-500.0,0.00050136,30]
[314610433,1708450337060,-272.69163738,0.00050136,30]
[314610434,1708450337072,-580.83,0.00050136,30]
[314610435,1708450337083,-500.0,0.00050136,30]
[314610436,1708450337095,-1571.69,0.00050136,30]
[314610437,1708450337107,-500.0,0.00050136,30]
[314610438,1708450337118,-889.56,0.00050136,30]
[314610439,1708450337130,-2031.89,0.00050136,30]
[314610440,1708450337147,-890.15,0.00050136,30]
[314610441,1708450337159,-500.0,0.00050136,30]
[314610442,1708450337170,-1056.5,0.00050136,30]
[314610443,1708450337182,-1596.9,0.00050136,30]
[314610444,1708450337193,-1523.79,0.00050136,30]
[314610445,1708450337204,-1495.71,0.00050136,30]
[314610446,1708450337216,-500.0,0.00050136,30]
[314610447,1708450337227,-1097.5,0.00050136,30]
[314610448,1708450337238,-500.0,0.00050136,30]
[314610449,1708450337249,-585.84,0.00050136,30]
[314610450,1708450337261,-500.0,0.00050136,30]
[314610451,1708450337272,-500.0,0.00050136,30]
[314610452,1708450337286,-585.85877421,0.00050136,30]
[314610453,1708450337670,-600.87,0.00050136,30]
[314610454,1708450337686,-500.0,0.00050136,30]
[314610455,1708450337695,-500.0,0.00050136,30]
[314610456,1708450337705,-500.0,0.00050136,30]
[314610457,1708450337714,-500.0,0.00050136,30]
[314610458,1708450337723,-500.0,0.00050136,30]
[314610459,1708450337733,-1109.89,0.00050136,30]
[314610460,1708450337742,-500.0,0.00050136,30]
[314610461,1708450337751,-249.18,0.00050136,30]
[314610462,1708450337760,-500.0,0.00050136,30]
[314610463,1708450337770,-500.0,0.00050136,30]
[314610464,1708450337779,-990.69,0.00050136,30]
[314610465,1708450337789,-500.0,0.00050136,30]
[314610466,1708450337798,-627.6,0.00050136,30]
[314610467,1708450337808,-2790.94,0.00050136,30]
[314610468,1708450337818,-872.54,0.00050136,30]
[314610469,1708450337828,-500.0,0.00050136,30]
[314610470,1708450337837,-421.50329782,0.00050136,30]
[314610471,1708450337847,-500.0,0.00050136,30]
[314610472,1708450337856,-584.12,0.00050136,30]
[314610473,1708450337865,-500.0,0.00050136,30]
[314610474,1708450337875,-500.0,0.00050136,30]
[314610475,1708450337884,-506.93,0.00050136,30]
[314610476,1708450337896,-500.0,0.00050136,30]
[314610477,1708450337905,-713.45,0.00050136,30]
[314610478,1708450337914,-521.09836187,0.00050136,30]
[314610479,1708450337924,-2162.43,0.00050136,30]
[314610480,1708450337933,-500.0,0.00050136,30]
[314610481,1708450337943,-552.52,0.00050136,30]
[314610482,1708450337953,-875.54,0.00050136,30]
[314610483,1708450337962,-584.88,0.00050136,30]
[314610484,1708450337972,-530.19,0.00050136,30]
[314610485,1708450337982,-500.0,0.00050136,30]
[314610486,1708450337991,-153.19552475,0.00050188,60]
[314610487,1708450338001,-159.75125406,0.00050192,60]
[314610488,1708450338011,-159.75125406,0.00050198,60]
[314610489,1708450338020,-32700.0,0.000502,60]
[314610490,1708450338029,-150.0,0.00050219,30]
[314610491,1708450338039,-151.63991692,0.00050227,60]
[314610492,1708450338048,-294.84,0.00050228,2]
[314610493,1708450338058,-247.73629298,0.00050233,60]
[314610494,1708450338067,-169.96008554,0.00050244,60]
[314610495,1708450338078,-153.41585342,0.0005027,60]
[314610496,1708450338087,-154.33839749,0.00050271,60]
[314610497,1708450338097,-159.75125406,0.0005029,60]
[314610498,1708450338106,-156.90277528,0.00050293,60]
[314610499,1708450338116,-99999.99999901,0.000503,15]
[314610500,1708450338125,-160.00022845,0.000503,30]
[314610501,1708450338135,-155.18298927,0.00050313,60]
[314610502,1708450338147,-951.37034958,0.00050318,60]
[314610503,1708450338156,-159.75125406,0.00050331,60]
[314610504,1708450338165,-150.0,0.00050367,30]
[314610505,1708450338175,-951.37034958,0.0005038,60]
[314610506,1708450338185,-247.73629298,0.00050395,60]
[314610507,1708450338194,-1000.0,0.00050399,2]
[314610508,1708450338204,-1118.94313414,0.000504,120]
[314610509,1708450338213,-237.60398688,0.000504,120]
[314610510,1708450338223,-2000.0,0.000504,2]
[314610511,1708450338232,-167.0,0.0005041,28]
[314610512,1708450338242,-600.0,0.0005041,30]
[314610513,1708450338254,-786.47,0.0005041,31]
[314610514,1708450338268,-500.0,0.0005041,30]
[314610515,1708450338279,-500.0,0.0005041,2]
[314610516,1708450338289,-1441.53,0.0005041,30]
[314610517,1708450338298,-500.0,0.0005041,30]
[314610518,1708450338309,-267.8,0.0005041,30]
[314610519,1708450338318,-1270.73,0.0005041,30]
[314610520,1708450338327,-734.91,0.0005041,30]
[314610521,1708450338337,-500.0,0.0005041,30]
[314610522,1708450338346,-500.0,0.0005041,30]
[314610523,1708450338355,-2166.93,0.0005041,30]
[314610524,1708450338365,-500.0,0.0005041,30]
[314610525,1708450338375,-2578.86,0.0005041,30]
[314610526,1708450338384,-542.64,0.0005041,30]
[314610527,1708450338396,-5958.34,0.0005041,30]
[314610528,1708450338406,-9351.93,0.0005041,30]
[314610529,1708450338416,-532.08,0.0005041,30]
[314610530,1708450338426,-500.0,0.0005041,30]
[314610531,1708450338437,-1749.56,0.0005041,30]
[314610532,1708450338446,-1234.3,0.0005041,30]
[314610533,1708450338455,-500.0,0.0005041,30]
[314610534,1708450338464,-500.0,0.0005041,30]
[314610535,1708450338474,-514.34,0.0005041,30]
[314610536,1708450338483,-795.95,0.0005041,30]
[314610537,1708450338492,-500.0,0.0005041,30]
[314610538,1708450338502,-500.0,0.0005041,30]
[314610539,1708450338511,-500.0,0.0005041,30]
[314610540,1708450338520,-500.0,0.0005041,30]
[314610541,1708450338530,-500.0,0.0005041,30]
[314610542,1708450338539,-580.83,0.0005041,30]
[314610543,1708450338548,-500.0,0.0005041,30]
[314610544,1708450338558,-1571.69,0.0005041,30]
[314610545,1708450338568,-500.0,0.0005041,30]
[314610546,1708450338577,-889.56,0.0005041,30]
[314610547,1708450338587,-2031.89,0.0005041,30]
[314610548,1708450338597,-890.15,0.0005041,30]
[314610549,1708450338606,-500.0,0.0005041,30]
[314610550,1708450338616,-1056.5,0.0005041,30]
[314610551,1708450338625,-1596.9,0.0005041,30]
[314610552,1708450338634,-1523.79,0.0005041,30]
[314610553,1708450338647,-1495.71,0.0005041,30]
[314610554,1708450338657,-500.0,0.0005041,30]
[314610555,1708450338666,-1097.5,0.0005041,30]
[314610556,1708450338675,-500.0,0.0005041,30]
[314610557,1708450338685,-585.84,0.0005041,30]
[314610558,1708450338695,-500.0,0.0005041,30]
[314610559,1708450338705,-500.0,0.0005041,30]
[314610560,1708450338715,-500.0,0.0005041,30]
[314610561,1708450338724,-500.0,0.0005041,30]
[314610562,1708450338734,-500.0,0.0005041,30]
[314610563,1708450338743,-500.0,0.0005041,30]
[314610564,1708450338752,-500.0,0.0005041,30]
[314610565,1708450338762,-1109.89,0.0005041,30]
[314610566,1708450338771,-500.0,0.0005041,30]
[314610567,1708450338780,-500.0,0.0005041,30]
[314610568,1708450338789,-500.0,0.0005041,30]
[314610569,1708450338799,-990.69,0.0005041,30]
[314610570,1708450338808,-500.0,0.0005041,30]
[314610571,1708450338817,-627.6,0.0005041,30]
[314610572,1708450338826,-2790.94,0.0005041,30]
[314610573,1708450338835,-872.54,0.0005041,30]
[314610574,1708450338844,-500.0,0.0005041,30]
[314610575,1708450338853,-500.0,0.0005041,30]
[314610576,1708450338862,-584.12,0.0005041,30]
[314610577,1708450338871,-500.0,0.0005041,30]
[314610578,1708450338880,-500.0,0.0005041,30]
[314610579,1708450338890,-506.93,0.0005041,30]
[314610580,1708450338899,-500.0,0.0005041,30]
[314610581,1708450338908,-713.45,0.0005041,30]
[314610582,1708450338918,-2162.43,0.0005041,30]
[314610583,1708450338927,-164.77,0.0005041,30]
[314610584,1708450338936,-552.52,0.0005041,30]
[314610585,1708450338946,-875.54,0.0005041,30]
[314610586,1708450338956,-584.88,0.0005041,30]
[314610587,1708450338965,-530.19,0.0005041,30]
[314610588,1708450338974,-441.29141059,0.0005041,30]
[314610589,1708450338984,-951.37034958,0.00050412,60]
[314610590,1708450338994,-247.73629298,0.00050416,60]
[314610591,1708450339003,-150.0,0.00050441,30]
[314610592,1708450339012,-1579.0,0.00050449,30]
[314610593,1708450339022,-150.72003919,0.00050464,60]
[314610594,1708450339031,-154.64659138,0.00050469,60]
[314610595,1708450339041,-159.75125406,0.0005048,60]
[314610596,1708450339051,-151.0212031,0.00050498,48]
[314610597,1708450339060,-250.0,0.000505,120]
[314610598,1708450339069,-200.0,0.000505,28]
[314610599,1708450339079,-1500.0,0.0005051,100]
[314610600,1708450339089,-150.0,0.00050515,30]
[314610601,1708450339098,-20000.0,0.0005055,120]
[314610602,1708450339107,-154.33839749,0.0005057,60]
[314610603,1708450339117,-154.33839749,0.00050574,60]
[314610604,1708450339127,-154.82722731,0.00050588,60]
[314610605,1708450339136,-150.0,0.00050663,30]
[314610606,1708450339148,-600.0,0.00050684,30]
[314610607,1708450339158,-786.47,0.00050684,31]
[314610608,1708450339167,-500.0,0.00050684,30]
[314610609,1708450339177,-1000.0,0.00050684,120]
[314610610,1708450339187,-344.76,0.00050684,2]
[314610611,1708450339196,-1441.53,0.00050684,30]
[314610612,1708450339206,-1270.73,0.00050684,30]
[314610613,1708450339216,-734.91,0.00050684,30]
[314610614,1708450339225,-500.0,0.00050684,30]
[314610615,1708450339234,-500.0,0.00050684,30]
[314610616,1708450339244,-500.0,0.00050684,90]
[314610617,1708450339254,-2166.93,0.00050684,30]
[314610618,1708450339268,-500.0,0.00050684,30]
[314610619,1708450339282,-2578.86,0.00050684,30]
[314610620,1708450339291,-542.64,0.00050684,30]
[314610621,1708450339299,-5958.34,0.00050684,30]
[314610622,1708450339310,-9351.93,0.00050684,30]
[314610623,1708450339319,-500.0,0.00050684,30]
[314610624,1708450339329,-1749.56,0.00050684,30]
[314610625,1708450339338,-1234.3,0.00050684,30]
[314610626,1708450339347,-500.0,0.00050684,30]
[314610627,1708450339356,-471.17,0.00050684,30]
[314610628,1708450339365,-514.34,0.00050684,30]
[314610629,1708450339375,-795.95,0.00050684,30]
[314610630,1708450339384,-500.0,0.00050684,30]
[314610631,1708450339395,-500.0,0.00050684,30]
[314610632,1708450339404,-495.7,0.00050684,30]
[314610633,1708450339413,-500.0,0.00050684,30]
[314610634,1708450339423,-533.88870207,0.00050684,30]
[314610635,1708450339432,-580.83,0.00050684,30]
[314610636,1708450339441,-500.0,0.00050684,30]
[314610637,1708450339451,-1571.69,0.00050684,30]
[314610638,1708450339461,-500.0,0.00050684,30]
[314610639,1708450339470,-889.56,0.00050684,30]
[314610640,1708450339480,-2031.89,0.00050684,30]
[314610641,1708450339490,-890.15,0.00050684,30]
[314610642,1708450339499,-569.42,0.00050684,30]
[314610643,1708450339508,-1056.5,0.00050684,30]
[314610644,1708450339518,-1596.9,0.00050684,30]
[314610645,1708450339527,-1523.79,0.00050684,30]
[314610646,1708450339536,-1495.71,0.00050684,30]
[314610647,1708450339546,-1097.5,0.00050684,30]
[314610648,1708450339556,-500.0,0.00050684,30]
[314610649,1708450339566,-500.0,0.00050684,30]
[314610650,1708450339575,-585.84,0.00050684,30]
[314610651,1708450339585,-320.51561327,0.00050684,30]
[314610652,1708450339595,-500.0,0.00050684,30]
[314610653,1708450339604,-500.0,0.00050684,30]
[314610654,1708450339614,-500.0,0.00050684,30]
[314610655,1708450339624,-160.57,0.00050684,30]
[314610656,1708450339633,-500.0,0.00050684,30]
[314610657,1708450339647,-534.07311491,0.00050684,30]
[314610658,1708450339656,-1109.89,0.00050684,30]
[314610659,1708450339666,-500.0,0.00050684,30]
[314610660,1708450339675,-500.0,0.00050684,30]
[314610661,1708450339685,-176.57743665,0.00050684,30]
[314610662,1708450339694,-990.69,0.00050684,30]
[314610663,1708450339704,-500.0,0.00050684,30]
[314610664,1708450339713,-627.6,0.00050684,30]
[314610665,1708450339722,-2790.94,0.00050684,30]
[314610666,1708450339731,-872.54,0.00050684,30]
[314610667,1708450339740,-500.0,0.00050684,30]
[314610668,1708450339750,-500.0,0.00050684,30]
[314610669,1708450339758,-584.12,0.00050684,30]
[314610670,1708450339768,-500.0,0.00050684,30]
[314610671,1708450339777,-445.76,0.00050684,30]
[314610672,1708450339786,-506.93,0.00050684,30]
[314610673,1708450339795,-500.0,0.00050684,30]
[314610674,1708450339804,-713.45,0.00050684,30]
[314610675,1708450339814,-2162.43,0.00050684,30]
[314610676,1708450339823,-552.52,0.00050684,30]
[314610677,1708450339832,-875.54,0.00050684,30]
[314610678,1708450339842,-584.88,0.00050684,30]
[314610679,1708450339852,-530.19,0.00050684,30]
[314610680,1708450339861,-154.0388237,0.0005069,60]
[314610681,1708450339871,-173.44560293,0.000507,120]
[314610682,1708450339880,-307.9823172,0.000507,14]
[314610683,1708450339892,-155.58772598,0.00050704,60]
[314610684,1708450339901,-155.18298927,0.00050707,60]
[314610685,1708450339911,-153.19552475,0.00050725,60]
[314610686,1708450339921,-155.18298927,0.00050735,60]
[314610687,1708450339931,-247.73629298,0.00050736,60]
[314610688,1708450339941,-247.73629298,0.00050783,60]
[314610689,1708450339952,-155.58772598,0.00050789,60]
[314610690,1708450339962,-247.73629298,0.00050791,60]
[314610691,1708450339971,-154.82722731,0.00050793,60]
[314610692,1708450339981,-153.06599981,0.00050797,47]
[314610693,1708450339990,-2844.87580378,0.00050798,49]
[314610694,1708450340000,-614.29204313,0.000508,60]
[314610695,1708450340010,-777.0,0.000508,120]
[314610696,1708450340020,-307.9823172,0.000508,14]
[314610697,1708450340030,-307.9823172,0.000508,14]
[314610698,1708450340040,-307.9823172,0.000508,14]
[314610699,1708450340049,-300.0,0.000508,14]
[314610700,1708450340059,-357.11128,0.000508,14]
[314610701,1708450340069,-17523.0,0.000508,120]
[314610702,1708450340079,-150.0,0.0005081,30]
[314610703,1708450340089,-1883.75,0.00050822,30]
[314610704,1708450340099,-153.000824,0.00050831,30]
[314610705,1708450340108,-156.90277528,0.00050838,60]
[314610706,1708450340118,-150.80458249,0.0005086,30]
[314610707,1708450340128,-150.72003919,0.00050883,60]
[314610708,1708450340139,-2500.0,0.00050885,60]
[314610709,1708450340152,-154.64659138,0.00050899,60]
[314610710,1708450340162,-200.0,0.000509,26]
[314610711,1708450340173,-87201.79804659,0.000509,120]
[314610712,1708450340185,-1294.4534021,0.000509,30]
[314610713,1708450340195,-302.0,0.000509,30]
[314610714,1708450340206,-3065.18839998,0.000509,30]
[314610715,1708450340217,-1009.4207,0.00050907,5]
[314610716,1708450340227,-153.95,0.00050918,2]
[314610717,1708450340238,-73950.0,0.0005093,17]
[314610718,1708450340248,-155.18298927,0.00050932,60]
[314610719,1708450340258,-1579.0,0.00050944,30]
[314610720,1708450340274,-951.37034958,0.00050949,60]
[314610721,1708450340284,-189.62299406,0.00050958,30]
[314610722,1708450340294,-200.43021972,0.00050958,30]
[314610723,1708450340305,-166.41844101,0.00050958,30]
[314610724,1708450340316,-218.94328033,0.00050958,30]
[314610725,1708450340325,-177.2754486,0.00050958,30]
[314610726,1708450340335,-600.0,0.00050958,30]
[314610727,1708450340345,-786.47,0.00050958,31]
[314610728,1708450340356,-500.0,0.00050958,30]
[314610729,1708450340367,-1441.53,0.00050958,30]
[314610730,1708450340377,-1270.73,0.00050958,30]
[314610731,1708450340387,-734.91,0.00050958,30]
[314610732,1708450340401,-500.0,0.00050958,30]
[314610733,1708450340412,-500.0,0.00050958,30]
[314610734,1708450340422,-2166.93,0.00050958,30]
[314610735,1708450340432,-500.0,0.00050958,30]
[314610736,1708450340441,-2578.86,0.00050958,30]
[314610737,1708450340451,-542.64,0.00050958,30]
[314610738,1708450340460,-5958.34,0.00050958,30]
[314610739,1708450340470,-9351.93,0.00050958,30]
[314610740,1708450340480,-500.0,0.00050958,30]
[314610741,1708450340490,-1749.56,0.00050958,30]
[314610742,1708450340499,-1234.3,0.00050958,30]
[314610743,1708450340508,-500.0,0.00050958,30]
[314610744,1708450340518,-514.34,0.00050958,30]
[314610745,1708450340528,-795.95,0.00050958,30]
[314610746,1708450340538,-500.0,0.00050958,30]
[314610747,1708450340548,-500.0,0.00050958,30]
[314610748,1708450340558,-500.0,0.00050958,30]
[314610749,1708450340568,-580.83,0.00050958,30]
[314610750,1708450340578,-500.0,0.00050958,30]
[314610751,1708450340588,-1571.69,0.00050958,30]
[314610752,1708450340598,-500.0,0.00050958,30]
[314610753,1708450340608,-889.56,0.00050958,30]
[314610754,1708450340618,-2031.89,0.00050958,30]
[314610755,1708450340628,-890.15,0.00050958,30]
[314610756,1708450340638,-1056.5,0.00050958,30]
[314610757,1708450340651,-1596.9,0.00050958,30]
[314610758,1708450340661,-1523.79,0.00050958,30]
[314610759,1708450340670,-1495.71,0.00050958,30]
[314610760,1708450340680,-1097.5,0.00050958,30]
[314610761,1708450340689,-500.0,0.00050958,30]
[314610762,1708450340699,-500.0,0.00050958,30]
[314610763,1708450340709,-585.84,0.00050958,30]
[314610764,1708450340718,-500.0,0.00050958,30]
[314610765,1708450340727,-500.0,0.00050958,30]
[314610766,1708450340935,-500.0,0.00050958,30]
[314610767,1708450340945,-500.0,0.00050958,30]
[314610768,1708450340956,-1109.89,0.00050958,30]
[314610769,1708450340966,-500.0,0.00050958,30]
[314610770,1708450340976,-500.0,0.00050958,30]
[314610771,1708450340987,-990.69,0.00050958,30]
[314610772,1708450340997,-500.0,0.00050958,30]
[314610773,1708450341007,-627.6,0.00050958,30]
[314610774,1708450341017,-2790.94,0.00050958,30]
[314610775,1708450341027,-872.54,0.00050958,30]
[314610776,1708450341037,-500.0,0.00050958,30]
[314610777,1708450341047,-500.0,0.00050958,30]
[314610778,1708450341057,-584.12,0.00050958,30]
[314610779,1708450341067,-443.78785356,0.00050958,30]
[314610780,1708450341077,-506.93,0.00050958,30]
[314610781,1708450341087,-500.0,0.00050958,30]
[314610782,1708450341097,-713.45,0.00050958,30]
[314610783,1708450341107,-2162.43,0.00050958,30]
[314610784,1708450341117,-552.52,0.00050958,30]
[314610785,1708450341127,-875.54,0.00050958,30]
[314610786,1708450341137,-584.88,0.00050958,30]
[314610787,1708450341151,-530.19,0.00050958,30]
[314610788,1708450341162,-156.90277528,0.00050966,60]
[314610789,1708450341171,-250.0,0.0005097,7]
[314610790,1708450341181,-247.73629298,0.00050976,60]
[314610791,1708450341191,-843.0,0.00050977,2]
[314610792,1708450341201,-954.0,0.00050977,120]
[314610793,1708450341216,-1231.0,0.00050977,120]
[314610794,1708450341228,-1951.0,0.00050977,120]
[314610795,1708450341247,-200.0,0.00050987,81]
[314610796,1708450341257,-200.0,0.00050987,100]
[314610797,1708450341268,-100000.0,0.00051,51]
[314610798,1708450341280,-5650.96620298,0.00051,120]
[314610799,1708450341292,-5000.0,0.00051,120]
[314610800,1708450341302,-5000.0,0.00051,120]
[314610801,1708450341311,-631.93768176,0.00051,60]
[314610802,1708450341322,-1000.0,0.00051,60]
[314610803,1708450341332,-1000.0,0.00051,120]
[314610804,1708450341341,-150.0,0.00051,29]
[314610805,1708450341351,-10000.0,0.00051,120]
[314610806,1708450341363,-1000.0,0.00051,120]
[314610807,1708450341373,-5000.0,0.00051,120]
[314610808,1708450341383,-172688.12018863,0.00051,90]
[314610809,1708450341398,-296.0,0.00051,120]
[314610810,1708450341407,-1000.2,0.00051,120]
[314610811,1708450341417,-13107.99631362,0.00051,30]
[314610812,1708450341427,-150.0,0.00051,20]
[314610813,1708450341437,-300.0,0.00051,51]
[314610814,1708450341447,-253.21,0.00051,120]
[314610815,1708450341457,-800.0,0.00051,10]
[314610816,1708450341467,-700.0,0.00051,10]
[314610817,1708450341476,-700.831487,0.00051,10]
[314610818,1708450341487,-20000.0,0.00051,120]
[314610819,1708450341497,-12000.0,0.00051,120]
[314610820,1708450341507,-200.0,0.00051,29]
[314610821,1708450341517,-300.0,0.00051,52]
[314610822,1708450341528,-580.09431999,0.00051,15]
[314610823,1708450341538,-3907.67,0.00051,7]
[314610824,1708450341548,-16000.0,0.00051,51]
[314610825,1708450341560,-151.93088735,0.00051016,60]
[314610826,1708450341570,-155.58772598,0.00051025,60]
[314610827,1708450341581,-196.35429008,0.00051027,60]
[314610828,1708450341592,-153.19552475,0.00051046,60]
[314610829,1708450341602,-157.2094137,0.00051114,58]
[314610830,1708450341612,-155.58772598,0.00051126,60]
[314610831,1708450341622,-154.64659138,0.00051127,60]
[314610832,1708450341632,-50000.0,0.00051155,14]
[314610833,1708450341644,-151.0,0.00051166,2]
[314610834,1708450341654,-250.49088,0.00051166,2]
[314610835,1708450341666,-500.0,0.000512,10]
[314610836,1708450341676,-159.75125406,0.0005122,60]
[314610837,1708450341687,-75191.0,0.0005123,120]
[314610838,1708450341696,-600.0,0.00051232,30]
[314610839,1708450341707,-786.47,0.00051232,31]
[314610840,1708450341716,-500.0,0.00051232,30]
[314610841,1708450341727,-1441.53,0.00051232,30]
[314610842,1708450341737,-1270.73,0.00051232,30]
[314610843,1708450341747,-734.91,0.00051232,30]
[314610844,1708450341757,-500.0,0.00051232,30]
[314610845,1708450341767,-500.0,0.00051232,30]
[314610846,1708450341777,-2166.93,0.00051232,30]
[314610847,1708450341787,-500.0,0.00051232,30]
[314610848,1708450341797,-2578.86,0.00051232,30]
[314610849,1708450341807,-542.64,0.00051232,30]
[314610850,1708450341816,-5958.34,0.00051232,30]
[314610851,1708450341826,-9351.93,0.00051232,30]
[314610852,1708450341837,-500.0,0.00051232,30]
[314610853,1708450341847,-1749.56,0.00051232,30]
[314610854,1708450341857,-1234.3,0.00051232,30]
[314610855,1708450341867,-555.24,0.00051232,30]
[314610856,1708450341876,-514.34,0.00051232,30]
[314610857,1708450341886,-795.95,0.00051232,30]
[314610858,1708450341899,-500.0,0.00051232,30]
[314610859,1708450341908,-497.61,0.00051232,30]
[314610860,1708450341918,-500.0,0.00051232,30]
[314610861,1708450341927,-580.83,0.00051232,30]